fUSD/lending_fUSD_20250417
["ID","MTS","AMOUNT","RATE_DAILY","PERIOD"]
[358303786,1744909839735,-400.0,0.00074,120]
[358303787,1744909839744,-561.46387065,0.00074899,80]
[358303788,1744909839754,-3567.12158692,0.000749,120]
[358303789,1744909839764,-1218.4164,0.000749,120]
[358303790,1744909839776,-2500.0,0.000749,2]
[358303791,1744909839785,-179.40328363,0.00074929,58]
[358303792,1744909839794,-966.04558624,0.00074929,46]
[358303793,1744909839805,-890.95,0.0007499,30]
[358303794,1744909839815,-890.95,0.0007499,30]
[358303795,1744909839825,-500.0,0.00074998,120]
[358303796,1744909839834,-270.03,0.00074998,120]
[358303797,1744909839844,-278.98091643,0.00074998,120]
[358303798,1744909839854,-197.24520734,0.00074998,120]
[358303799,1744909839864,-608.68,0.00074998,120]
[358303800,1744909839874,-500.0,0.00074998,120]
[358303801,1744909839884,-500.0,0.00074998,120]
[358303802,1744909839893,-500.0,0.00074998,120]
[358303803,1744909839904,-500.0,0.00074998,120]
[358303804,1744909839914,-500.0,0.00074998,2]
[358303805,1744909839923,-500.0,0.00074998,120]
[358303806,1744909839932,-500.0,0.00074998,120]
[358303807,1744909839942,-500.0,0.00074998,120]
[358303808,1744909839951,-851.54,0.00074998,120]
[358303809,1744909839960,-500.0,0.00074998,120]
[358303810,1744909839970,-500.0,0.00074998,120]
[358303811,1744909839979,-278.09,0.00074998,120]
[358303812,1744909839988,-1301.38,0.00074998,120]
[358303814,1744909839998,-205.11,0.00074998,120]
[358303815,1744909840007,-271.96002567,0.00074998,120]
[358303816,1744909840017,-5542.34,0.00074998,120]
[358303817,1744909840027,-500.0,0.00074998,120]
[358303818,1744909840037,-193.20496624,0.00074999,120]
[358303819,1744909840046,-166.03637561,0.00074999,120]
[358303820,1744909840056,-2638.83169596,0.00074999,120]
[358303821,1744909840066,-2638.83169596,0.00074999,120]
[358303822,1744909840075,-2638.83169596,0.00074999,120]
[358303823,1744909840084,-2638.83169596,0.00074999,120]
[358303824,1744909840094,-2638.83169596,0.00074999,120]
[358303825,1744909840103,-2638.83169596,0.00074999,120]
[358303826,1744909840112,-1769.0485554,0.00074999,120]
[358303827,1744909840260,-869.78314056,0.00074999,120]
[358303828,1744909840270,-500.0,0.00074999,120]
[358303829,1744909840279,-18.69905091,0.00074999,120]
[358303830,1744909840739,-449.0,0.0005,120]
[358303831,1744909840749,-241.9053791,0.00074999,120]
[358303832,1744909840759,-263.20813153,0.00074999,30]
[358303833,1744909840773,-482.68318654,0.00074999,30]
[358303834,1744909840785,-254.10868193,0.00074999,30]
[358303835,1744909840795,-985.5192,0.00074999,30]
[358303836,1744909840806,-32.57865649,0.00074999,30]
[358303837,1744909840823,-967.42134351,0.00074999,30]
[358303838,1744909840832,-754.4,0.00074999,118]
[358303840,1744909840842,-500.0,0.00074999,120]
[358303842,1744909840852,-500.0,0.00074999,120]
[358303844,1744909840862,-500.0,0.00074999,120]
[358303846,1744909840871,-1000.0,0.00074999,30]
[358303847,1744909840881,-200.66796765,0.00074999,120]
[358303848,1744909840891,-687.95,0.00074999,120]
[358303849,1744909840901,-415.78,0.00074999,120]
[358303850,1744909840910,-500.0,0.00074999,120]
[358303851,1744909840920,-500.0,0.00074999,120]
[358303852,1744909840930,-500.0,0.00074999,8]
[358303853,1744909840939,-500.0,0.00074999,120]
[358303854,1744909840949,-500.0,0.00074999,120]
[358303855,1744909840958,-500.0,0.00074999,120]
[358303856,1744909840967,-500.0,0.00074999,120]
[358303857,1744909840977,-500.0,0.00074999,120]
[358303858,1744909840987,-500.0,0.00074999,120]
[358303859,1744909840997,-893.0,0.00075,60]
[358303860,1744909841006,-28094.82827314,0.00075,120]
[358303861,1744909841018,-8469.53005304,0.00075,120]
[358303870,1744909843351,-449.0,0.00052,120]
[358303872,1744909843361,-58.63875635,0.00074998,120]
[358303887,1744909843974,-499.67509861,0.00074998,120]
[358303888,1744909843983,-500.0,0.00074998,120]
[358303889,1744909843992,-226.86724278,0.00074999,120]
[358303890,1744909844003,-273.13275722,0.00074999,120]
[358303891,1744909844012,-572.33004476,0.00075,120]
[358303892,1744909845419,-50000.0,0.00075,120]
[358303895,1744909846354,-449.0,0.00054,120]
[358303896,1744909846364,-449.0,0.00056,120]
[358303897,1744909846373,-250.0,0.00059772,30]
[358303898,1744909846383,-4335.72845317,0.00075,120]
[358303899,1744909846411,-593.975,0.00075,120]
[358303900,1744909846518,-172.44227286,0.00075,120]
[358303901,1744909846628,-5140.22916995,0.00075,120]
[358303902,1744909846667,-21.80421912,0.00075,120]
[358303903,1744909846679,-691.43154628,0.00075,120]
[358303904,1744909846690,-2566.17632041,0.00075,120]
[358303905,1744909846702,-1017.15841837,0.00075,120]
[358303906,1744909846783,-851.63613404,0.00075,120]
[358303907,1744909854635,150.39822181,0.00028,120]
[358303923,1744910616123,250.0,0.00017,2]
[358303924,1744910617211,300.0,0.00019,2]
[358303925,1744910655024,3000.0,0.00028,120]
[358303926,1744910662407,3000.0,0.00028,120]
[358303927,1744910669624,3000.0,0.00028,120]
[358303928,1744910677049,3000.0,0.00028,120]
[358303929,1744910683350,3000.0,0.00028,120]
[358303930,1744910689278,3000.0,0.00028,120]
[358303932,1744910705398,1852.94,0.00028,120]
[358303933,1744910720273,3631.48953583,9e-05,2]
[358303934,1744910720297,1224.92168333,9e-05,2]
[358303935,1744910728583,849.03421608,0.00011,2]
[358303936,1744910737024,409.92443273,9e-05,2]
[358303937,1744910828123,-179.21,0.000199,2]
[358303938,1744910828147,-300.0,0.00019999,2]
[358303939,1744910828168,-550.0,0.00019999,2]
[358303940,1744910828189,-191.52658853,0.00019999,2]
[358303941,1744910828213,-181.01330069,0.00019999,2]
[358303942,1744910828239,-10913.77745955,0.0002,2]
[358303943,1744910829103,-796.50499256,0.0002,2]
[358303944,1744910833086,-352.753765,0.000198,2]
[358303945,1744910833111,-166.49313904,0.0002,2]
[358303946,1744910848143,-3365.1688361,0.0002,2]
[358303947,1744910854129,-885.88547056,0.0002,2]
[358303954,1744910945085,-1643.3715107,0.000199,2]
[358303955,1744910945110,-1288.0142,0.000199,2]
[358303956,1744910945132,-236.23280063,0.000199,2]
[358303957,1744910945156,-13228.02451494,0.0002,2]
[358303958,1744910949113,-44780.01808,0.0002,2]
[358303959,1744910954118,-262388.90370324,0.0002,2]
[358303962,1744910960104,-7635.28682098,0.0002,2]
[358303963,1744910963103,-4325.839462,0.0002,2]
[358303969,1744911031476,-3615.93484035,0.000199,2]
[358303970,1744911031486,-161.780655,0.000199,2]
[358303971,1744911031533,-399.68321565,0.000199,2]
[358303972,1744911031543,-300.0,0.00019999,2]
[358303973,1744911031553,-300.0,0.00019999,2]
[358303974,1744911031562,-953.04273722,0.0002,2]
[358303975,1744911031574,-4086.11267,0.0002,2]
[358303976,1744911031622,-1838.71549141,0.0002,2]
[358303977,1744911031633,-2002.65164984,0.0002,2]
[358303978,1744911031646,-2585.72572743,0.0002,2]
[358303979,1744911031657,-2771.54956373,0.0002,2]
[358303980,1744911031668,-2354.8,0.0002,2]
[358303981,1744911031702,-4106.71448545,0.0002,2]
[358303982,1744911031759,-574.42573208,0.0002,2]
[358303984,1744911031771,-598.20233049,0.0002,2]
[358303997,1744911037617,-2724.35378421,0.0002,2]
[358304017,1744911039931,-135995.8832325,0.0002,2]
[358304018,1744911039942,-96784.792174,0.0002,2]
[358304019,1744911039989,-856.91738543,0.0002,2]
[358304020,1744911040002,-285.41552679,0.0002,2]
[358304045,1744911042440,-14351.0,0.0002,2]
[358304058,1744911043112,-35755.47880246,0.0002,2]
[358304061,1744911045483,-394.70525372,0.0002,2]
[358304062,1744911045494,-379.49999999,0.0002,2]
[358304075,1744911289172,-3150.0,0.0002,4]
[358304076,1744911303179,151.0,0.00017999,2]
[358304079,1744911500053,200.0,0.0001964,2]
[358304080,1744911998109,-275.84519451,0.000198,2]
[358304081,1744911998130,-115.80627884,0.000198,2]
[358304082,1744912041079,-111.87062116,0.000198,2]
[358304083,1744912041101,-150.0,0.00019863,2]
[358304084,1744912041122,-300.0,0.00019899,2]
[358304085,1744912041143,-500.0,0.000199,2]
[358304086,1744912041165,-155.765,0.000199,2]
[358304087,1744912041185,-120.78913933,0.000199,2]
[358304088,1744912041217,-6050.94076207,0.000199,2]
[358304089,1744912042122,-389.73301081,0.000199,2]
[358304090,1744912046095,-1163.84004997,0.000199,2]
[358304091,1744912054181,-8525.02003782,0.000199,2]
[358304092,1744912054203,-1000.0,0.000199,2]
[358304093,1744912054225,-1810.3253,0.000199,2]
[358304094,1744912054246,-9185.4188546,0.000199,2]
[358304095,1744912152205,-300.0,0.00019899,2]
[358304096,1744912152227,-300.0,0.00019899,2]
[358304097,1744912152248,-906.5736,0.000199,2]
[358304102,1744912231592,-300.0,0.00019899,2]
[358304103,1744912231603,-3207.5489454,0.000199,2]
[358304104,1744912231613,-563.26350452,0.000199,2]
[358304105,1744912231624,-281.3369,0.000199,2]
[358304106,1744912231634,-867.8621,0.000199,2]
[358304107,1744912231644,-755.1642,0.000199,2]
[358304108,1744912231654,-894.2067,0.000199,2]
[358304109,1744912231664,-382.4543,0.000199,2]
[358304110,1744912231673,-173.03906958,0.000199,2]
[358304111,1744912231683,-2500.0,0.000199,2]
[358304112,1744912231692,-831.28900281,0.000199,2]
[358304113,1744912231702,-165.51879553,0.0001995,2]
[358304114,1744912231711,-500.0,0.00019967,2]
[358304115,1744912231720,-152.17,0.0001999,2]
[358304116,1744912231729,-299.96370574,0.00019999,2]
[358304117,1744912231739,-1000.0,0.00019999,2]
[358304118,1744912231749,-483.2632,0.00019999,2]
[358304119,1744912231758,-1244.33180469,0.00019999,2]
[358304120,1744912231768,-1000.0,0.00019999,2]
[358304121,1744912231778,-465.52331498,0.00019999,2]
[358304122,1744912231788,-296.49268158,0.00019999,2]
[358304123,1744912231797,-12629.93373447,0.0002,2]
[358304124,1744912231809,-1733.14250175,0.0002,2]
[358304125,1744912231824,-21822.05633536,0.0002,2]
[358304126,1744912231836,-4755.4681174,0.0002,2]
[358304127,1744912231847,-1050.0,0.0002,2]
[358304128,1744912231859,-1577.36276331,0.0002,2]
[358304129,1744912231876,-739.489561,0.0002,2]
[358304130,1744912231888,-35029.04700352,0.0002,2]
[358304131,1744912231902,-38915.13334815,0.0002,2]
[358304132,1744912231915,-4261.45522481,0.0002,2]
[358304172,1744912237731,-98677.75242008,0.0002,2]
[358304173,1744912237740,-567.64062165,0.00021574,2]
[358304174,1744912237750,-420.0,0.0002167,2]
[358304175,1744912237761,-2008.33914037,0.00021674,2]
[358304176,1744912237770,-152.17,0.0002177,2]
[358304177,1744912237780,-420.0,0.00021774,2]
[358304178,1744912237790,-250.0,0.0002178,2]
[358304179,1744912237799,-250.0,0.00021889,2]
[358304180,1744912237809,-250.0,0.0002189,2]
[358304181,1744912237818,-500.0,0.00023217,2]
[358304182,1744912237828,-500.0,0.00023217,2]
[358304183,1744912237838,-158.26548598,0.00023217,2]
[358304184,1744912237847,-500.0,0.00023217,2]
[358304185,1744912237857,-161.09676596,0.00023217,2]
[358304186,1744912237866,-290.48154422,0.00023217,2]
[358304187,1744912237875,-280.17335578,0.00023217,2]
[358304188,1744912237885,-301.75063953,0.00023217,2]
[358304189,1744912237895,-152.33264634,0.00023217,2]
[358304190,1744912237905,-180.0,0.00023599,2]
[358304191,1744912237916,-587.0,0.00023826,2]
[358304192,1744912237927,-183.68092461,0.0002385,2]
[358304193,1744912237937,-500.0,0.0002385,2]
[358304194,1744912237946,-500.0,0.0002385,2]
[358304195,1744912237955,-500.0,0.0002385,2]
[358304196,1744912237965,-500.0,0.0002385,2]
[358304197,1744912237975,-156.3943608,0.0002515,2]
[358304198,1744912237985,-910.33492546,0.00025446,2]
[358304199,1744912237994,-823.0,0.00026071,2]
[358304200,1744912238004,-250.0,0.00026467,2]
[358304201,1744912238014,-20267.05509908,0.00027381,2]
[358304202,1744912238024,-200.0,0.00028,2]
[358304203,1744912238033,-2008.33914028,0.00028144,2]
[358304204,1744912238042,-1152.0,0.00028528,2]
[358304205,1744912238052,-1000.0,0.00028696,5]
[358304206,1744912238062,-502.5045184,0.00028696,5]
[358304207,1744912238071,-500.0,0.00029329,5]
[358304208,1744912238080,-345.98354872,0.00029329,5]
[358304209,1744912238090,-500.0,0.00029329,5]
[358304210,1744912238100,-178.0,0.00031217,3]
[358304211,1744912238110,-500.0,0.0003152,2]
[358304212,1744912238119,-23900.0,0.00032779,2]
[358304214,1744912238128,-160.01,0.00032877,30]
[358304216,1744912238138,-158.49,0.00032877,2]
[358304218,1744912238147,-156.83,0.0003364,30]
[358304220,1744912238157,-2076.52,0.00033674,2]
[358304222,1744912238166,-952.38,0.00033695,30]
[358304225,1744912238175,-155.55,0.00033939,2]
[358304227,1744912238185,-152.17,0.00034421,2]
[358304228,1744912238194,-164.56,0.00034431,2]
[358304230,1744912238203,-1000.0,0.00034431,2]
[358304232,1744912238213,-150.0,0.00034548,10]
[358304234,1744912238222,-2008.33914028,0.00034613,2]
[358304236,1744912238231,-150.99,0.00034649,2]
[358304238,1744912238240,-4195.24,0.00034649,2]
[358304240,1744912238249,-2241.81,0.00034649,2]
[358304242,1744912238259,-14205.06,0.00034649,10]
[358304244,1744912238268,-499.99,0.00034649,2]
[358304246,1744912238278,-150.99,0.00034649,30]
[358304247,1744912238287,-9999.99,0.00034649,2]
[358304249,1744912238296,-9999.99,0.00034649,2]
[358304251,1744912238305,-485.32,0.00034649,30]
[358304253,1744912238314,-9999.99,0.00034649,2]
[358304255,1744912238324,-999.99,0.00034649,2]
[358304256,1744912238334,-2209.09,0.00034706,2]
[358304257,1744912238343,-152.17,0.00035445,2]
[358304258,1744912238352,-1000.0,0.00035454,2]
[358304259,1744912238362,-3992.2925638,0.00036287,2]
[358304260,1744912238371,-155.55,0.0003674,2]
[358304261,1744912238381,-152.17,0.00037863,2]
[358304262,1744912238390,-59.93063773,0.00037873,2]
[358304263,1744912238488,-672.32675055,0.00037873,2]
[358304264,1744912238499,-500.0,0.00037873,2]
[358304265,1744912238512,-3638.16,0.00037873,2]
[358304266,1744912238523,-2000.0,0.00037873,2]
[358304267,1744912238534,-6729.79971441,0.00037873,2]
[358304268,1744912238635,-10846.15289731,0.00037873,2]
[358304269,1744912238645,-3450.86071998,0.00038578,2]
[358304270,1744912238655,-13329.94,0.00038678,2]
[358304271,1744912238664,-1000.0,0.00038735,2]
[358304272,1744912238674,-3026.23569573,0.00038855,2]
[358304273,1744912238683,-155.55,0.00039541,2]
[358304274,1744912238692,-173.0,0.00041,14]
[358304275,1744912238702,-2008.33914028,0.00041083,15]
[358304276,1744912238711,-200.0,0.00041207,2]
[358304277,1744912238720,-820.13,0.00042209,2]
[358304278,1744912238730,-152.17,0.0004233,2]
[358304279,1744912238739,-12360.68530152,0.0004234,2]
[358304280,1744912238822,-103.41469848,0.0004234,2]
[358304281,1744912238831,-290.88,0.00042634,2]
[358304282,1744912238841,-121.25700335,0.00042755,2]
[358304283,1744912238852,-656.78299665,0.00042755,2]
[358304284,1744912238863,-635.56,0.00042777,2]
[358304285,1744912238873,-200.0,0.00042777,2]
[358304286,1744912238882,-289.70100335,0.00042777,2]
[358304294,1744912239928,-10.29899665,0.00042777,2]
[358304295,1744912239937,-2053.0,0.00042777,2]
[358304296,1744912239946,-319.04,0.00042777,2]
[358304297,1744912239955,-178.99,0.00042864,120]
[358304298,1744912239964,-500.0,0.00042936,2]
[358304299,1744912239972,-2000.0,0.00042936,120]
[358304300,1744912239982,-801.31,0.00042951,2]
[358304301,1744912239990,-746.79,0.00042951,2]
[358304302,1744912239999,-1000.0,0.00043039,2]
[358304303,1744912240008,-209.32700337,0.00043169,15]
[358304304,1744912240024,-3241.53371656,0.00043169,15]
[358304305,1744912240033,-2991.15,0.00043304,2]
[358304306,1744912240042,-522.42,0.00043949,69]
[358304307,1744912240050,-159.218,0.00043949,69]
[358304308,1744912240059,-820.13,0.00044473,2]
[358304309,1744912240068,-151.0,0.00045,120]
[358304310,1744912240077,-32481.25837655,0.00045,30]
[358304311,1744912240085,-150.0,0.00045589,10]
[358304312,1744912240094,-1274.12,0.00046505,2]
[358304313,1744912240103,-820.13,0.00046736,2]
[358304314,1744912240112,-150.0,0.00046805,2]
[358304315,1744912240122,-1000.0,0.00047343,2]
[358304316,1744912240132,-684.33567296,0.00047552,15]
[358304317,1744912240147,-1324.00346732,0.00047552,15]
[358304318,1744912240157,-175.99653268,0.000477,3]
[358304319,1744912240168,-1182.00346732,0.000477,3]
[358304320,1744912240177,-2822.48953265,0.00047761,15]
[358304321,1744912240189,-628.37118728,0.00047761,15]
[358304322,1744912240199,-401.29,0.0004813,2]
[358304323,1744912240208,-110.37217585,0.00048155,2]
[358304324,1744912240219,-311.1253507,0.00048155,2]
[358304325,1744912240368,-920.11247345,0.00048155,2]
[358304326,1744912240377,-312.4,0.00048601,2]
[358304327,1744912240386,-820.13,0.00049,2]
[358304328,1744912240395,-113.35752655,0.00049173,120]
[358304349,1744912242829,-43.51683041,0.000199,2]
[358304355,1744912243715,-155.86386845,0.000199,2]
[358304356,1744912243772,-1.28835015,0.000199,2]
[358304362,1744912245724,-799.33095099,0.000199,2]
[358304363,1744912245741,-151.0,0.00037954,2]
[358304364,1744912245750,-136.64247345,0.00049173,120]
[358304365,1744912245760,-5560.0,0.000493,5]
[358304366,1744912245771,-1345.4,0.0004967,2]
[358304367,1744912245780,-200.0,0.00049933,120]
[358304368,1744912245790,-700.03629426,0.00049998,10]
[358304369,1744912245800,-820.13,0.00051264,2]
[358304370,1744912245809,-2751.0,0.0005144,120]
[358304371,1744912245818,-520.77,0.0005144,2]
[358304372,1744912245828,-1000.0,0.00051647,120]
[358304373,1744912245838,-151.0,0.00052,120]
[358304374,1744912245847,-151.602557,0.00052054,120]
[358304375,1744912245857,-3450.86071993,0.00052352,15]
[358304376,1744912245867,-615.19788976,0.000525,10]
[358304377,1744912245876,-500.61828817,0.000525,10]
[358304378,1744912245886,-500.0,0.000525,10]
[358304379,1744912245896,-159.69970315,0.000525,10]
[358304380,1744912245906,-540.144209,0.000525,10]
[358304381,1744912245915,-500.0,0.000525,10]
[358304382,1744912245924,-500.0,0.000525,10]
[358304383,1744912245934,-901.64254712,0.00052595,24]
[358304384,1744912245944,-170.61,0.00053121,2]
[358304385,1744912245954,-153.48,0.000532,51]
[358304386,1744912245964,-153.48,0.000532,51]
[358304387,1744912245974,-820.13,0.00053528,2]
[358304388,1744912245983,-2003.8862345,0.00053596,2]
[358304389,1744912245993,-375.0,0.00053596,120]
[358304390,1744912246003,-151.0,0.000536,100]
[358304391,1744912246012,-2008.33914028,0.00054022,15]
[358304392,1744912246023,-39323.73580264,0.000548,120]
[358304393,1744912246039,-297.675,0.000548,120]
[358304394,1744912246050,-1792.39749765,0.000548,120]
[358304395,1744912246082,-129.31556104,0.000548,120]
[358304397,1744912419479,250.0,0.00017,2]
[358304398,1744912420573,300.0,0.00019,2]
[358304405,1744913168766,522.271098,0.00019701,2]
[358304406,1744913195827,-300.0,0.00019799,2]
[358304407,1744913195850,-1184.09423225,0.000198,2]
[358304408,1744913195875,-500.0,0.000198,2]
[358304409,1744913195896,-500.0,0.000198,2]
[358304410,1744913195921,-478.07641553,0.000198,2]
[358304411,1744913195943,-7271.9193,0.000199,2]
[358304412,1744913195964,-217.99380183,0.000199,2]
[358304413,1744913230122,-350.0,0.00021,2]
[358304414,1744913230145,-232.98794647,0.00021667,2]
[358304415,1744913233119,-187.01205353,0.00021667,2]
[358304416,1744913233141,-250.0,0.0002189,2]
[358304417,1744913233166,-250.0,0.0002189,2]
[358304418,1744913233186,-321.57618788,0.00023,2]
[358304419,1744913234096,-78.42381212,0.00023,2]
[358304420,1744913234118,-587.0,0.00023711,2]
[358304421,1744913234139,-450.0,0.00025,2]
[358304422,1744913234160,-323.0,0.00025949,2]
[358304423,1744913234182,-500.0,0.00027,2]
[358304424,1744913234203,-550.0,0.00029,2]
[358304425,1744913234223,-5305.06538155,0.00030208,2]
[358304426,1744913250099,-642.88459683,0.00030208,2]
[358304427,1744913345113,-3000.0,0.00028,2]
[358304428,1744913345134,-3689.56,0.00029,2]
[358304429,1744913345156,-300.0,0.00029999,2]
[358304430,1744913345176,-300.0,0.00029999,2]
[358304431,1744913345197,-4458.69655338,0.0003,2]
[358304432,1744913360098,-541.30344662,0.0003,2]
[358304433,1744913360119,-8478.70053227,0.00030208,2]
[358304434,1744913360141,-600.0,0.00031,2]
[358304435,1744913360163,-411.0,0.0003247,3]
[358304436,1744913360184,-160.01,0.00032877,30]
[358304437,1744913360206,-22.51536001,0.00033,2]
[358304438,1744913361098,-213.68134791,0.00033,2]
[358304439,1744913366086,-413.80329208,0.00033,2]
[358304440,1744913366107,-999.99,0.00033844,2]
[358304441,1744913366127,-2241.81,0.00033844,2]
[358304442,1744913366315,-4261.84309822,0.00033844,2]
[358304443,1744913366344,-1689.93427497,0.00033844,2]
[358304444,1744913374092,-2983.8454796,0.00033844,2]
[358304446,1744913431814,-900.0260292,0.0002799,2]
[358304447,1744913431826,-1184.09423224,0.00034331,5]
[358304448,1744913431838,-260.38,0.00034431,2]
[358304449,1744913431848,-160.2,0.00034431,2]
[358304450,1744913431861,-250.0,0.00034431,2]
[358304451,1744913431874,-700.0,0.00035,2]
[358304452,1744913431888,-160.2,0.00036153,2]
[358304453,1744913431901,-200.0,0.00036518,2]
[358304454,1744913431913,-2076.52,0.00037833,2]
[358304455,1744913431926,-1652.50358214,0.00037833,10]
[358304456,1744913431941,-13759.58846068,0.00037833,10]
[358304457,1744913431977,-5234.1291851,0.00037833,10]
[358304458,1744913432027,-415.87469936,0.00037833,10]
[358304461,1744913432044,-421.26863609,0.00037833,10]
[358304463,1744913432057,-510.8963481,0.00037833,10]
[358304495,1744913437887,-373.99730778,0.00037833,10]
[358304496,1744913437996,-1499.8,0.00037833,10]
[358304497,1744913438090,-8431.1612707,0.00037833,10]
[358304498,1744913438103,-1484.65051005,0.00037833,10]
[358304499,1744913438113,-150.99,0.00037833,2]
[358304500,1744913438123,-150.99,0.00037833,30]
[358304501,1744913438132,-485.32,0.00037833,30]
[358304502,1744913438142,-499.99,0.00037833,2]
[358304503,1744913438151,-7735.05326211,0.00037833,2]
[358304504,1744913438167,-2264.93673789,0.00037833,2]
[358304505,1744913438177,-299.99,0.00037833,30]
[358304506,1744913438187,-9999.99,0.00037833,2]
[358304507,1744913438196,-4195.24,0.00037833,2]
[358304508,1744913438206,-208.01806213,0.00037833,2]
[358304553,1744913439970,-806.0,0.00037833,2]
[358304554,1744913439982,-50.35193787,0.00037833,2]
[358304555,1744913439991,-349.7303956,0.00037873,2]
[358304556,1744913440152,-794.5096044,0.00037873,2]
[358304557,1744913440162,-160.2,0.00037874,2]
[358304558,1744913440171,-160.2,0.00039596,2]
[358304559,1744913440181,-158.49,0.00039732,2]
[358304560,1744913440190,-10062.91450399,0.00039932,2]
[358304561,1744913440259,-6697.2917849,0.00039932,2]
[358304573,1744913443095,-4110.1640625,0.00039932,2]
[358304577,1744913445876,-3029.62964861,0.00039932,2]
[358304578,1744913445886,-165.03,0.00039932,2]
[358304579,1744913445896,-2209.09,0.00040252,2]
[358304580,1744913445906,-1581.06,0.00040539,2]
[358304581,1744913445915,-164.56,0.00041154,2]
[358304582,1744913445925,-160.2,0.00041317,2]
[358304583,1744913445935,-250.0,0.00042291,2]
[358304584,1744913445945,-12156.01,0.000425,2]
[358304585,1744913445955,-64378.0,0.000429,2]
[358304586,1744913445964,-5560.0,0.000445,3]
[358304587,1744913445973,-165.03,0.00044924,2]
[358304588,1744913445983,-710.27,0.00045899,2]
[358304589,1744913445992,-1000.0,0.00045958,2]
[358304590,1744913446002,-515.46579764,0.00045963,2]
[358304591,1744913446011,-5560.0,0.000461,5]
[358304592,1744913446021,-174.86,0.00046362,2]
[358304593,1744913446030,-2500.0,0.000477,2]
[358304594,1744913446039,-952.38,0.00047817,30]
[358304595,1744913446048,-200.0,0.00047817,2]
[358304596,1744913446058,-156.83,0.00047845,120]
[358304597,1744913446067,-998.56,0.00048092,120]
[358304598,1744913446076,-710.27,0.00048163,2]
[358304599,1744913446086,-36751.58345441,0.00048181,2]
[358304600,1744913446096,-500.0,0.00048187,10]
[358304601,1744913446199,-166.909,0.00048203,82]
[358304602,1744913446213,-829.854,0.00048203,82]
[358304603,1744913446223,-260.38,0.00048203,2]
[358304604,1744913446233,-345.98354872,0.00048513,10]
[358304605,1744913446243,-500.0,0.00048513,10]
[358304607,1744913446253,-2447.84831562,0.00049468,2]
[358304608,1744913446265,-1696.05864263,0.00049468,2]
[358304609,1744913446277,-436.00613573,0.00049468,2]
[358304610,1744913446288,-691.43154628,0.00049468,2]
[358304611,1744913446300,-381.40000019,0.00049468,2]
[358304613,1744913446316,-698.83346939,0.00049468,2]
[358304616,1744913446339,-734.22511413,0.00049468,2]
[358304637,1744914122423,150.0,0.000265,30]
[358304639,1744914231814,250.0,0.00017,2]
[358304640,1744914232941,300.0,0.00019,2]
[358304641,1744914308577,88997.91625039,0.0002,2]
[358304642,1744914337135,-170.78255217,0.0002,2]
[358304643,1744914432076,-568.20164362,0.00019899,2]
[358304644,1744914434109,-705.63247138,0.00019899,2]
[358304645,1744914434134,-500.0,0.00019973,2]
[358304646,1744914434164,-500.0,0.00019999,2]
[358304647,1744914434189,-500.0,0.00019999,2]
[358304648,1744914434211,-300.0,0.00019999,2]
[358304649,1744914434232,-850.0,0.00019999,2]
[358304650,1744914434253,-300.0,0.00019999,2]
[358304651,1744914434276,-152.50287238,0.00019999,2]
[358304652,1744914450143,-500.0,0.00019999,2]
[358304653,1744914450165,-500.0,0.00019999,2]
[358304654,1744914450189,-34.89619223,0.00019999,2]